[Event "Late-Titled-Tuesday-Blitz-February-13-2024"]
[Site "Chess.com"]
[Date "2024.02.13"]
[Round "9"]
[White "DonJuan_34"]
[Black "sansanathalia"]
[Result "1/2-1/2"]
[WhiteElo "2488"]
[BlackElo "2387"]
[TimeControl "180+1"]
[EndTime "15:45:42 PST"]
[Termination "Game drawn by repetition"]

1. d4 {[%clk 0:03:00.9]} 1... Nf6 {[%clk 0:02:56.1]} 2. c4 {[%clk 0:03:00.1]}
2... e6 {[%clk 0:02:53.2]} 3. Nc3 {[%clk 0:02:59.3]} 3... d5 {[%clk 0:02:52]} 4.
Bg5 {[%clk 0:02:58.4]} 4... Be7 {[%clk 0:02:47.3]} 5. cxd5 {[%clk 0:02:57.6]}
5... exd5 {[%clk 0:02:43.9]} 6. e3 {[%clk 0:02:57.4]} 6... O-O {[%clk
0:02:35.9]} 7. Bd3 {[%clk 0:02:57.1]} 7... h6 {[%clk 0:02:34.4]} 8. Bh4 {[%clk
0:02:53]} 8... b6 {[%clk 0:02:28.6]} 9. Nge2 {[%clk 0:02:44.2]} 9... Bb7 {[%clk
0:02:22.4]} 10. O-O {[%clk 0:02:42.1]} 10... Ne4 {[%clk 0:02:13.3]} 11. Bxe7
{[%clk 0:02:37.6]} 11... Qxe7 {[%clk 0:02:07.8]} 12. Qc2 {[%clk 0:02:30.9]}
12... Nd7 {[%clk 0:01:57.9]} 13. Rae1 {[%clk 0:02:18.6]} 13... Ndf6 {[%clk
0:01:50.3]} 14. f3 {[%clk 0:02:14.9]} 14... Nxc3 {[%clk 0:01:47.7]} 15. Nxc3
{[%clk 0:02:14.7]} 15... c5 {[%clk 0:01:45.4]} 16. Qf2 {[%clk 0:02:14.3]} 16...
Rfe8 {[%clk 0:01:42.5]} 17. Bb5 {[%clk 0:01:57.8]} 17... Red8 {[%clk 0:01:38]}
18. Bd3 {[%clk 0:01:50.4]} 18... cxd4 {[%clk 0:01:28.7]} 19. exd4 {[%clk
0:01:50]} 19... Qd7 {[%clk 0:01:24.9]} 20. Re5 {[%clk 0:01:42.9]} 20... a6
{[%clk 0:01:18.4]} 21. Bf5 {[%clk 0:01:32.6]} 21... Qd6 {[%clk 0:01:12.8]} 22.
Rfe1 {[%clk 0:01:30.3]} 22... Re8 {[%clk 0:01:07.8]} 23. Qd2 {[%clk 0:01:18.8]}
23... b5 {[%clk 0:01:04]} 24. Bc2 {[%clk 0:01:09.3]} 24... Bc6 {[%clk
0:00:55.4]} 25. R1e3 {[%clk 0:01:07.2]} 25... Qb4 {[%clk 0:00:43.2]} 26. Nb1
{[%clk 0:01:02.1]} 26... Qxd2 {[%clk 0:00:34.3]} 27. Nxd2 {[%clk 0:01:03]} 27...
Kf8 {[%clk 0:00:33.4]} 28. Nb3 {[%clk 0:00:59.8]} 28... Nd7 {[%clk 0:00:32.4]}
29. Rxe8+ {[%clk 0:00:55.9]} 29... Rxe8 {[%clk 0:00:31.8]} 30. Kf2 {[%clk
0:00:53.9]} 30... Rxe3 {[%clk 0:00:30.3]} 31. Kxe3 {[%clk 0:00:54]} 31... Nb6
{[%clk 0:00:30.8]} 32. Bd3 {[%clk 0:00:52.4]} 32... Nc4+ {[%clk 0:00:27.4]} 33.
Bxc4 {[%clk 0:00:52.1]} 33... dxc4 {[%clk 0:00:27.3]} 34. Nc5 {[%clk 0:00:44.7]}
34... a5 {[%clk 0:00:24.1]} 35. b3 {[%clk 0:00:39.5]} 35... c3 {[%clk
0:00:19.6]} 36. a3 {[%clk 0:00:37.9]} 36... b4 {[%clk 0:00:18.2]} 37. axb4
{[%clk 0:00:37.4]} 37... axb4 {[%clk 0:00:19.1]} 38. Nd3 {[%clk 0:00:33.1]}
38... Bd5 {[%clk 0:00:18.8]} 39. Nxb4 {[%clk 0:00:30.9]} 39... Bxb3 {[%clk
0:00:18.9]} 40. Kd3 {[%clk 0:00:31]} 40... Ke7 {[%clk 0:00:17.8]} 41. Kxc3
{[%clk 0:00:31]} 41... Ba4 {[%clk 0:00:18.2]} 42. Kd3 {[%clk 0:00:29.7]} 42...
Bb5+ {[%clk 0:00:18.1]} 43. Ke4 {[%clk 0:00:28.7]} 43... Kd6 {[%clk 0:00:18.3]}
44. Nd3 {[%clk 0:00:27.4]} 44... Bc6+ {[%clk 0:00:18]} 45. Ke3 {[%clk
0:00:27.2]} 45... Bd5 {[%clk 0:00:15.8]} 46. h4 {[%clk 0:00:25.1]} 46... Bc4
{[%clk 0:00:15.6]} 47. Ne5 {[%clk 0:00:24.6]} 47... Bd5 {[%clk 0:00:15.6]} 48.
h5 {[%clk 0:00:22.4]} 48... f6 {[%clk 0:00:15.1]} 49. Nd3 {[%clk 0:00:20.7]}
49... Bc4 {[%clk 0:00:13.6]} 50. Nf4 {[%clk 0:00:19.7]} 50... Bf1 {[%clk
0:00:11.9]} 51. g4 {[%clk 0:00:19.5]} 51... Bc4 {[%clk 0:00:11.5]} 52. Nh3
{[%clk 0:00:13.6]} 52... Bb3 {[%clk 0:00:11.5]} 53. Ng1 {[%clk 0:00:13.3]} 53...
Kd5 {[%clk 0:00:10.8]} 54. Ne2 {[%clk 0:00:13.3]} 54... Bc2 {[%clk 0:00:10.6]}
55. Nc3+ {[%clk 0:00:12.3]} 55... Kc4 {[%clk 0:00:09.2]} 56. Ne2 {[%clk
0:00:12.8]} 56... Kd5 {[%clk 0:00:08.9]} 57. Nf4+ {[%clk 0:00:12.6]} 57... Kd6
{[%clk 0:00:09.5]} 58. Ng6 {[%clk 0:00:09.7]} 58... Bb3 {[%clk 0:00:06.6]} 59.
Nf4 {[%clk 0:00:09.7]} 59... Bc2 {[%clk 0:00:06.7]} 60. Nd3 {[%clk 0:00:09.1]}
60... Bb3 {[%clk 0:00:05.5]} 61. Nc5 {[%clk 0:00:09.2]} 61... Bc2 {[%clk
0:00:05.4]} 62. Ne4+ {[%clk 0:00:09.4]} 62... Kd5 {[%clk 0:00:04.6]} 63. Nc3+
{[%clk 0:00:09.9]} 63... Kc4 {[%clk 0:00:04.2]} 64. Ne2 {[%clk 0:00:09.1]} 64...
Kd5 {[%clk 0:00:03.6]} 1/2-1/2

[Event "Late-Titled-Tuesday-Blitz-February-13-2024"]
[Site "Chess.com"]
[Date "2024.02.13"]
[Round "9"]
[White "RantomOpening"]
[Black "egnfanclub"]
[Result "0-1"]
[WhiteElo "2511"]
[BlackElo "2371"]
[TimeControl "180+1"]
[EndTime "15:45:48 PST"]
[Termination "egnfanclub won by resignation"]

1. e4 {[%clk 0:02:59.7]} 1... e5 {[%clk 0:02:59.6]} 2. Nf3 {[%clk 0:02:58.7]}
2... Nc6 {[%clk 0:02:59.8]} 3. c3 {[%clk 0:02:59.2]} 3... Nf6 {[%clk 0:02:59.1]}
4. d4 {[%clk 0:02:55.6]} 4... Nxe4 {[%clk 0:02:57.8]} 5. Bd3 {[%clk 0:02:53.4]}
5... d5 {[%clk 0:02:52.6]} 6. Nxe5 {[%clk 0:02:53.3]} 6... Nxe5 {[%clk
0:02:49.6]} 7. dxe5 {[%clk 0:02:52.8]} 7... Nc5 {[%clk 0:02:47.9]} 8. Bc2 {[%clk
0:02:45.1]} 8... Ne6 {[%clk 0:02:29.9]} 9. O-O {[%clk 0:02:44.6]} 9... Bc5
{[%clk 0:02:24.9]} 10. Nd2 {[%clk 0:02:43.2]} 10... O-O {[%clk 0:02:23.2]} 11.
Nf3 {[%clk 0:02:37.7]} 11... a5 {[%clk 0:02:17.2]} 12. Qd3 {[%clk 0:02:26.4]}
12... g6 {[%clk 0:02:17]} 13. Bh6 {[%clk 0:02:25.4]} 13... Re8 {[%clk
0:02:17.2]} 14. Rad1 {[%clk 0:02:24.2]} 14... c6 {[%clk 0:02:16.7]} 15. c4
{[%clk 0:02:20]} 15... dxc4 {[%clk 0:02:05.8]} 16. Qxc4 {[%clk 0:02:20.9]} 16...
Qb6 {[%clk 0:02:05.9]} 17. Nd2 {[%clk 0:02:06.3]} 17... Qb4 {[%clk 0:02:01.4]}
18. Qxb4 {[%clk 0:02:00.5]} 18... axb4 {[%clk 0:01:58]} 19. Ne4 {[%clk
0:02:01.4]} 19... Be7 {[%clk 0:01:53.8]} 20. Bb3 {[%clk 0:02:01.3]} 20... Ra5
{[%clk 0:01:42.6]} 21. f4 {[%clk 0:02:00.7]} 21... Nc5 {[%clk 0:01:37.2]} 22.
Nd6 {[%clk 0:01:48.5]} 22... Bxd6 {[%clk 0:01:30.8]} 23. Rxd6 {[%clk 0:01:49.4]}
23... Nxb3 {[%clk 0:01:28.4]} 24. axb3 {[%clk 0:01:49.1]} 24... Be6 {[%clk
0:01:28.2]} 25. Rfd1 {[%clk 0:01:48.8]} 25... Rd5 {[%clk 0:01:23.5]} 26. Bg5
{[%clk 0:01:43]} 26... Ra8 {[%clk 0:01:07.3]} 27. Bf6 {[%clk 0:01:22.3]} 27...
Rxd1+ {[%clk 0:01:04.5]} 28. Rxd1 {[%clk 0:01:23.2]} 28... Bd5 {[%clk
0:01:04.8]} 29. Kf2 {[%clk 0:01:17.7]} 29... Ra2 {[%clk 0:01:03.9]} 30. Rd2
{[%clk 0:01:17.3]} 30... Kf8 {[%clk 0:01:01.9]} 31. Ke3 {[%clk 0:01:16.7]} 31...
Ke8 {[%clk 0:01:01.1]} 32. Kd4 {[%clk 0:01:17.2]} 32... b6 {[%clk 0:00:56.4]}
33. Ke3 {[%clk 0:01:15.6]} 33... Kd7 {[%clk 0:00:55.8]} 34. g4 {[%clk 0:01:15]}
34... Ke6 {[%clk 0:00:54.9]} 35. Rf2 {[%clk 0:01:14.7]} 35... Bxb3 {[%clk
0:00:45.9]} 36. f5+ {[%clk 0:01:13.1]} 36... Kd7 {[%clk 0:00:44.6]} 37. Rd2+
{[%clk 0:01:11.8]} 37... Bd5 {[%clk 0:00:44.4]} 38. Kf4 {[%clk 0:01:12]} 38...
Ra1 {[%clk 0:00:39.4]} 39. Kg5 {[%clk 0:01:11.4]} 39... b3 {[%clk 0:00:32]} 40.
Rd3 {[%clk 0:01:08.1]} 40... Rc1 {[%clk 0:00:30.5]} 41. Rh3 {[%clk 0:01:07.3]}
41... h5 {[%clk 0:00:22.6]} 42. gxh5 {[%clk 0:01:07.3]} 42... gxh5 {[%clk
0:00:22.7]} 43. Rxh5 {[%clk 0:01:08.2]} 43... Rg1+ {[%clk 0:00:22.5]} 44. Kf4
{[%clk 0:01:08]} 44... Rf1+ {[%clk 0:00:20.2]} 45. Ke3 {[%clk 0:01:08.3]} 45...
c5 {[%clk 0:00:17.6]} 46. Rh7 {[%clk 0:01:07.3]} 46... Kc6 {[%clk 0:00:17.7]}
47. h4 {[%clk 0:01:00.4]} 47... Rxf5 {[%clk 0:00:17.7]} 48. Rh8 {[%clk
0:01:00.2]} 48... Rf3+ {[%clk 0:00:17.5]} 49. Ke2 {[%clk 0:01:00.3]} 49... Rh3
{[%clk 0:00:17.6]} 50. h5 {[%clk 0:01:00.5]} 50... Rh2+ {[%clk 0:00:17.4]} 51.
Ke3 {[%clk 0:00:59.9]} 51... Be6 {[%clk 0:00:13.4]} 52. h6 {[%clk 0:00:59.5]}
52... Rxb2 {[%clk 0:00:13.2]} 53. h7 {[%clk 0:00:59.9]} 53... Rh2 {[%clk
0:00:13.8]} 54. Rb8 {[%clk 0:00:28.7]} 54... Rxh7 {[%clk 0:00:13.4]} 55. Bd8
{[%clk 0:00:29.6]} 55... b5 {[%clk 0:00:12.7]} 56. Rb6+ {[%clk 0:00:27.6]} 56...
Kd5 {[%clk 0:00:12.6]} 57. Rxb5 {[%clk 0:00:24.4]} 57... Kc4 {[%clk 0:00:13.2]}
58. Rb6 {[%clk 0:00:21.2]} 58... Rh3+ {[%clk 0:00:12.5]} 59. Kd2 {[%clk
0:00:21.3]} 59... Rh2+ {[%clk 0:00:11.9]} 60. Kc1 {[%clk 0:00:20.9]} 60... Kc3
{[%clk 0:00:12.1]} 61. Kd1 {[%clk 0:00:19.1]} 61... Rh1+ {[%clk 0:00:11.2]} 62.
Ke2 {[%clk 0:00:19.2]} 62... b2 {[%clk 0:00:11.7]} 63. Rb5 {[%clk 0:00:17.6]}
63... c4 {[%clk 0:00:10.9]} 64. Ba5+ {[%clk 0:00:17.4]} 64... Kc2 {[%clk
0:00:11.1]} 65. Ke3 {[%clk 0:00:13.5]} 65... b1=Q {[%clk 0:00:11.5]} 66. Rxb1
{[%clk 0:00:13.2]} 66... Rxb1 {[%clk 0:00:12.4]} 67. Kd4 {[%clk 0:00:14.1]}
67... Rd1+ {[%clk 0:00:11.5]} 68. Kc5 {[%clk 0:00:14]} 68... Rd5+ {[%clk
0:00:11.2]} 69. Kb6 {[%clk 0:00:14.9]} 69... Rxe5 {[%clk 0:00:11.2]} 0-1

[Event "Late-Titled-Tuesday-Blitz-February-13-2024"]
[Site "Chess.com"]
[Date "2024.02.13"]
[Round "9"]
[White "a_kandil"]
[Black "RandomNoob04"]
[Result "0-1"]
[WhiteElo "2494"]
[BlackElo "2616"]
[TimeControl "180+1"]
[EndTime "15:45:54 PST"]
[Termination "RandomNoob04 won by resignation"]

1. e4 {[%clk 0:03:00.9]} 1... e5 {[%clk 0:03:00.3]} 2. Nf3 {[%clk 0:02:59.6]}
2... Nf6 {[%clk 0:03:00.6]} 3. d4 {[%clk 0:02:56.1]} 3... Nxe4 {[%clk
0:03:00.5]} 4. Bd3 {[%clk 0:02:55.6]} 4... d5 {[%clk 0:03:00.7]} 5. Nxe5 {[%clk
0:02:55.6]} 5... Nd7 {[%clk 0:03:01.1]} 6. O-O {[%clk 0:02:49.2]} 6... Nxe5
{[%clk 0:03:00.2]} 7. dxe5 {[%clk 0:02:50.1]} 7... Nc5 {[%clk 0:03:01.1]} 8. Be2
{[%clk 0:02:46.3]} 8... Be7 {[%clk 0:02:56.7]} 9. c4 {[%clk 0:02:43.6]} 9... Be6
{[%clk 0:02:54.6]} 10. cxd5 {[%clk 0:02:43]} 10... Qxd5 {[%clk 0:02:53.8]} 11.
Nc3 {[%clk 0:02:42.3]} 11... Qxd1 {[%clk 0:02:52.7]} 12. Rxd1 {[%clk 0:02:43.2]}
12... O-O {[%clk 0:02:49.8]} 13. Be3 {[%clk 0:02:43.1]} 13... Rfd8 {[%clk
0:02:48.5]} 14. Nb5 {[%clk 0:02:40]} 14... Rdc8 {[%clk 0:02:36.8]} 15. Rac1
{[%clk 0:02:35.7]} 15... a6 {[%clk 0:02:11.3]} 16. Bxc5 {[%clk 0:02:29.7]} 16...
Bxc5 {[%clk 0:02:12.2]} 17. Rxc5 {[%clk 0:02:29.6]} 17... axb5 {[%clk
0:02:13.1]} 18. a3 {[%clk 0:02:25.3]} 18... c6 {[%clk 0:02:11.8]} 19. f4 {[%clk
0:02:16.7]} 19... Rd8 {[%clk 0:02:07.3]} 20. Rf1 {[%clk 0:01:46.9]} 20... Rd2
{[%clk 0:02:05.2]} 21. Bf3 {[%clk 0:01:10]} 21... Rxb2 {[%clk 0:02:04.5]} 22.
Rd1 {[%clk 0:01:07.5]} 22... g5 {[%clk 0:01:46.5]} 23. fxg5 {[%clk 0:01:00.6]}
23... Rxa3 {[%clk 0:01:47.1]} 24. h4 {[%clk 0:00:54.3]} 24... Ra4 {[%clk
0:01:10.7]} 25. h5 {[%clk 0:00:54.2]} 25... Bg4 {[%clk 0:01:08.2]} 26. h6 {[%clk
0:00:47.8]} 26... Kf8 {[%clk 0:01:04.7]} 27. Rc3 {[%clk 0:00:33.4]} 27... Ke7
{[%clk 0:00:52.1]} 28. e6 {[%clk 0:00:16.1]} 28... Bxe6 {[%clk 0:00:41.1]} 29.
Re3 {[%clk 0:00:16.3]} 29... Rbb4 {[%clk 0:00:27.6]} 30. g6 {[%clk 0:00:15.3]}
30... hxg6 {[%clk 0:00:21.5]} 31. Rde1 {[%clk 0:00:15.7]} 31... Rh4 {[%clk
0:00:20.6]} 32. Re4 {[%clk 0:00:06]} 32... Raxe4 {[%clk 0:00:19.6]} 33. Rxe4
{[%clk 0:00:06.2]} 33... Rxh6 {[%clk 0:00:20]} 34. Kf2 {[%clk 0:00:05.4]} 34...
Rh8 {[%clk 0:00:20.1]} 35. Re1 {[%clk 0:00:05.8]} 35... Ra8 {[%clk 0:00:19.4]}
36. Ke3 {[%clk 0:00:06.3]} 36... Ra4 {[%clk 0:00:17.8]} 37. Rc1 {[%clk
0:00:05.6]} 37... Kd6 {[%clk 0:00:17.7]} 38. Rd1+ {[%clk 0:00:05.9]} 38... Bd5
{[%clk 0:00:18.1]} 39. Bxd5 {[%clk 0:00:03.4]} 39... cxd5 {[%clk 0:00:19]} 40.
Rf1 {[%clk 0:00:04]} 40... f5 {[%clk 0:00:18.7]} 41. Rh1 {[%clk 0:00:04.5]}
41... d4+ {[%clk 0:00:14]} 42. Kd3 {[%clk 0:00:04.7]} 42... Kd5 {[%clk
0:00:13.4]} 43. Rh8 {[%clk 0:00:05.2]} 43... Ra3+ {[%clk 0:00:13.7]} 44. Ke2
{[%clk 0:00:05.5]} 44... Ra2+ {[%clk 0:00:13.2]} 45. Kd3 {[%clk 0:00:05.7]}
45... Rxg2 {[%clk 0:00:13.3]} 46. Rd8+ {[%clk 0:00:06]} 46... Kc5 {[%clk
0:00:13.4]} 47. Rc8+ {[%clk 0:00:06]} 47... Kb6 {[%clk 0:00:12.9]} 48. Kxd4
{[%clk 0:00:06.2]} 48... g5 {[%clk 0:00:12.9]} 49. Ke3 {[%clk 0:00:06.3]} 49...
f4+ {[%clk 0:00:13.2]} 50. Kf3 {[%clk 0:00:06.6]} 50... Rg3+ {[%clk 0:00:13.7]}
51. Kf2 {[%clk 0:00:07.1]} 51... Rd3 {[%clk 0:00:12.3]} 52. Rg8 {[%clk
0:00:07.3]} 52... Rd5 {[%clk 0:00:12.8]} 53. Kf3 {[%clk 0:00:07.8]} 53... Kc5
{[%clk 0:00:12.5]} 54. Ke4 {[%clk 0:00:08]} 54... Kc4 {[%clk 0:00:10.5]} 55. Rb8
{[%clk 0:00:06.4]} 55... b4 {[%clk 0:00:09.8]} 56. Rxb7 {[%clk 0:00:06.3]} 56...
Rb5 {[%clk 0:00:10.5]} 57. Rc7+ {[%clk 0:00:06.6]} 57... Kb3 {[%clk 0:00:11.2]}
58. Kd3 {[%clk 0:00:06.9]} 58... g4 {[%clk 0:00:07.8]} 59. Ke4 {[%clk
0:00:04.9]} 59... f3 {[%clk 0:00:07.7]} 60. Ke3 {[%clk 0:00:05.1]} 60... Rf5
{[%clk 0:00:07.1]} 61. Kf2 {[%clk 0:00:05.3]} 61... g3+ {[%clk 0:00:06.7]} 62.
Kxg3 {[%clk 0:00:04.9]} 62... f2 {[%clk 0:00:07.6]} 63. Rc1 {[%clk 0:00:03.5]}
63... f1=Q {[%clk 0:00:08.5]} 64. Rxf1 {[%clk 0:00:04]} 64... Rxf1 {[%clk
0:00:09.4]} 65. Kg2 {[%clk 0:00:04.9]} 65... Rf8 {[%clk 0:00:10]} 0-1

[Event "Late-Titled-Tuesday-Blitz-February-13-2024"]
[Site "Chess.com"]
[Date "2024.02.13"]
[Round "9"]
[White "Savagelittlemole"]
[Black "ozates"]
[Result "0-1"]
[WhiteElo "2453"]
[BlackElo "2580"]
[TimeControl "180+1"]
[EndTime "15:45:57 PST"]
[Termination "ozates won on time"]

1. e4 {[%clk 0:03:00.9]} 1... c5 {[%clk 0:02:57.9]} 2. Ne2 {[%clk 0:03:01.1]}
2... Nc6 {[%clk 0:02:58.1]} 3. g3 {[%clk 0:03:01.6]} 3... g6 {[%clk 0:02:55.7]}
4. Bg2 {[%clk 0:03:02.1]} 4... Bg7 {[%clk 0:02:55.7]} 5. O-O {[%clk 0:03:02.8]}
5... e5 {[%clk 0:02:55.6]} 6. Nbc3 {[%clk 0:03:01.7]} 6... Nge7 {[%clk 0:02:56]}
7. Nd5 {[%clk 0:03:01.9]} 7... O-O {[%clk 0:02:56.4]} 8. Nec3 {[%clk 0:02:56.6]}
8... d6 {[%clk 0:02:56.6]} 9. d3 {[%clk 0:02:56.1]} 9... h6 {[%clk 0:02:52.5]}
10. f4 {[%clk 0:02:54.3]} 10... Nxd5 {[%clk 0:02:52.1]} 11. Nxd5 {[%clk
0:02:53.1]} 11... Ne7 {[%clk 0:02:50]} 12. Nxe7+ {[%clk 0:02:43.4]} 12... Qxe7
{[%clk 0:02:49.7]} 13. f5 {[%clk 0:02:43.9]} 13... g5 {[%clk 0:02:40.4]} 14. f6
{[%clk 0:02:34.2]} 14... Bxf6 {[%clk 0:02:39.5]} 15. Qh5 {[%clk 0:02:34.4]}
15... Bg7 {[%clk 0:02:37.2]} 16. h4 {[%clk 0:02:30.1]} 16... f6 {[%clk
0:02:36.1]} 17. Be3 {[%clk 0:02:11.9]} 17... Be6 {[%clk 0:02:34.1]} 18. Rf2
{[%clk 0:02:09.9]} 18... Bf7 {[%clk 0:02:32.8]} 19. Qe2 {[%clk 0:02:07.4]} 19...
Bg6 {[%clk 0:02:26.1]} 20. Raf1 {[%clk 0:02:05.4]} 20... b5 {[%clk 0:02:25.4]}
21. Bh3 {[%clk 0:02:04.7]} 21... a5 {[%clk 0:02:19.4]} 22. Bf5 {[%clk
0:02:01.2]} 22... Bxf5 {[%clk 0:02:09.9]} 23. Rxf5 {[%clk 0:02:00.6]} 23... Qe8
{[%clk 0:02:10.4]} 24. Qg4 {[%clk 0:01:51.3]} 24... Qg6 {[%clk 0:02:09.3]} 25.
Kg2 {[%clk 0:01:42.8]} 25... h5 {[%clk 0:02:05.8]} 26. Qe2 {[%clk 0:01:39.3]}
26... g4 {[%clk 0:02:06.2]} 27. c3 {[%clk 0:01:38.3]} 27... Rac8 {[%clk
0:02:02]} 28. R1f2 {[%clk 0:01:34]} 28... Rfd8 {[%clk 0:02:01.3]} 29. d4 {[%clk
0:01:33.3]} 29... cxd4 {[%clk 0:01:59.5]} 30. cxd4 {[%clk 0:01:34.2]} 30... b4
{[%clk 0:01:54.6]} 31. dxe5 {[%clk 0:01:22.8]} 31... dxe5 {[%clk 0:01:54.5]} 32.
Bb6 {[%clk 0:01:23]} 32... Rd6 {[%clk 0:01:44.8]} 33. Bxa5 {[%clk 0:01:22.2]}
33... Rd4 {[%clk 0:01:35.4]} 34. b3 {[%clk 0:01:01.7]} 34... Qe8 {[%clk
0:01:29.6]} 35. Bb6 {[%clk 0:00:55.2]} 35... Rd6 {[%clk 0:01:26.1]} 36. Be3
{[%clk 0:00:51.5]} 36... Qc6 {[%clk 0:01:25.9]} 37. Bd2 {[%clk 0:00:39.5]} 37...
Rd4 {[%clk 0:01:11]} 38. Kh2 {[%clk 0:00:26.3]} 38... Rxe4 {[%clk 0:01:11]} 39.
Qf1 {[%clk 0:00:24.8]} 39... Rd4 {[%clk 0:00:51]} 40. Rxh5 {[%clk 0:00:21.2]}
40... Qd5 {[%clk 0:00:49.5]} 41. Bh6 {[%clk 0:00:19.3]} 41... Rd1 {[%clk
0:00:48.1]} 42. Qg2 {[%clk 0:00:18.5]} 42... Qxg2+ {[%clk 0:00:41.6]} 43. Kxg2
{[%clk 0:00:19.4]} 43... Rcc1 {[%clk 0:00:40.4]} 44. Re2 {[%clk 0:00:16.6]}
44... Rg1+ {[%clk 0:00:37]} 45. Kf2 {[%clk 0:00:16.9]} 45... Rcf1+ {[%clk
0:00:37.2]} 46. Ke3 {[%clk 0:00:17.6]} 46... Rxg3+ {[%clk 0:00:37.7]} 47. Ke4
{[%clk 0:00:18.3]} 47... f5+ {[%clk 0:00:34.2]} 48. Kd5 {[%clk 0:00:18.2]} 48...
Bf6 {[%clk 0:00:17.3]} 49. Bg5 {[%clk 0:00:16.5]} 49... Kf7 {[%clk 0:00:16.9]}
50. Rh7+ {[%clk 0:00:16]} 50... Kg8 {[%clk 0:00:17.2]} 51. Rb7 {[%clk
0:00:14.8]} 51... Rd3+ {[%clk 0:00:13.9]} 52. Ke6 {[%clk 0:00:14.3]} 52... Bg7
{[%clk 0:00:14.4]} 53. Rc2 {[%clk 0:00:11.1]} 53... Rfd1 {[%clk 0:00:12]} 54.
Rcc7 {[%clk 0:00:08.9]} 54... Rd6+ {[%clk 0:00:11.6]} 55. Kxf5 {[%clk
0:00:09.4]} 55... Rf1+ {[%clk 0:00:11.5]} 56. Kxg4 {[%clk 0:00:09.9]} 56... Bf8
{[%clk 0:00:09.3]} 57. Kh5 {[%clk 0:00:08.2]} 57... e4 {[%clk 0:00:08.7]} 58.
Rc8 {[%clk 0:00:08]} 58... Re6 {[%clk 0:00:07.4]} 59. Rc4 {[%clk 0:00:04.2]}
59... e3 {[%clk 0:00:07.6]} 60. Rg4 {[%clk 0:00:04.8]} 60... Rf7 {[%clk
0:00:04.6]} 61. Bf6+ {[%clk 0:00:03.3]} 61... Bg7 {[%clk 0:00:03.1]} 62. Rxg7+
{[%clk 0:00:03.5]} 62... Rxg7 {[%clk 0:00:03.6]} 63. Rxg7+ {[%clk 0:00:04]}
63... Kf8 {[%clk 0:00:04.5]} 64. Rg3 {[%clk 0:00:03.2]} 64... e2 {[%clk
0:00:04.8]} 65. Rf3 {[%clk 0:00:01.9]} 65... Ke8 {[%clk 0:00:02.8]} 0-1